Cogmind - Beta 16.1 @@@ ROGUE MODE // 2026.02.16 @ 22:48:57 Player: Gamma Result: Destroyed by QZ-6IZ(j) with Overtuned Pulse Rifle Performance ------------- Evolutions (0) 0 Regions Visited (3) 600 Robots Destroyed (4) 20 Value Destroyed (143) 143 Prototype IDs (6) 120 Alien Tech Used (0) 0 Bonus (800) 800 TOTAL SCORE: 1683 Bonus ------- Registered with UFD 300 Met Optimus in HQ 500 Cogmind --------- Core Integrity 0/250 Matter 275/300 Energy 69/100 System Corruption 1% Temperature Hot (200) Movement Treading (180) Ox2 Location -8/Scraptown Parts ------- > --- POWER (1) -------- (None) > --- PROPULSION (2) --- Overtuned Treads > --- UTILITY (2) ------ High-capacity Storage Unit > --- WEAPON (2) ------- Grenade Launcher > --- INVENTORY (20) --- Aluminum Leg Scrap Suit Improved Heat Sink Disposable Heat Sink Makeshift Light Armor Plating Shield Generator Makeshift Hacking Suite Riot Gun Heavy Laser CPS Tube (2) Peak State ------------ > --- POWER ------------ Ion Engine > --- PROPULSION ------- Armored Wheel Subdweller Monowheel > --- UTILITY ---------- High-capacity Storage Unit Makeshift Light Armor Plating > --- WEAPON ----------- Heavy Laser Heavy Laser > --- INVENTORY -------- Light Ion Engine Light Treads Light Treads Spiked Treads Overtuned Treads Aluminum Leg Subdweller Monowheel Scrap Suit Improved Heat Sink Disposable Heat Sink Makeshift Light Armor Plating Shield Generator Makeshift Hacking Suite Riot Gun Heavy Laser Heavy Laser Grenade Launcher CPS Tube [Rating: 22] Favorites ----------- Power Ion Engine Engine Ion Engine Propulsion Light Treads Treads Light Treads Leg Aluminum Leg Wheel Subdweller Monowheel Utility High-capacity Storage Unit Device Improved Heat Sink Storage High-capacity Storage Unit Protection Light Armor Plating Weapon Light Assault Rifle Energy Gun Heavy Laser Ballistic Gun Light Assault Rifle Ballistic Cannon Light Cannon Launcher Grenade Launcher Build | -11 -10 -10 -8 ------- Run | Yrd Mat Sub Scr Slots Evolved . | . . . . Power . | . . . . Propulsion . | . . . . Utility . | . . . . Weapon . | . . . . Parts Attached 24 | 7 5 . 12 Power 2 | 1 . . 1 Engine 2 | 1 . . 1 Core . | . . . . Reactor . | . . . . Propulsion 9 | 3 1 . 5 Treads 4 | 1 1 . 2 Leg 2 | 2 . . . Wheel 3 | . . . 3 Hover . | . . . . Flight . | . . . . Utility 5 | 1 3 . 1 Device 1 | . 1 . . Storage 2 | 1 1 . . Processor . | . . . . Hackware . | . . . . Protection 2 | . 1 . 1 Artifact . | . . . . Weapon 8 | 2 1 . 5 Energy Gun 5 | 1 . . 4 Energy Cannon . | . . . . Ballistic Gun 1 | 1 . . . Ballistic Cannon 1 | . 1 . . Launcher 1 | . . . 1 Special Weapon . | . . . . Impact Weapon . | . . . . Slashing Weapon . | . . . . Piercing Weapon . | . . . . Special Melee Weapon . | . . . . Unidentified Prototypes . | . . . . Parts Lost 12 | . . . 12 Power 2 | . . . 2 Propulsion 5 | . . . 5 Utility 2 | . . . 2 Weapon 3 | . . . 3 Highest Loss Streak 11 | . . . 11 To Critical Strikes . | . . . . Average Backups 17 | 3 8 10 19 Power . | . 1 1 . Propulsion 7 | 2 3 4 7 Utility 5 | . 1 3 5 Weapon 3 | . 1 2 3 Tool/Special . | . . . . Unused Backups 11 | . . . 11 Power . | . . . . Propulsion 2 | . . . 2 Utility 5 | . . . 5 Weapon 3 | . . . 3 Tool/Special 1 | . . . 1 Average Slot Usage (%) 99 | . 96 100 99 Engine 13 | . 14 14 13 Treads 26 | . 16 28 27 Storage 14 | . 14 14 14 Protection 13 | . 7 14 14 Energy Gun 6 | . 2 . 7 Ballistic Gun 10 | . 14 14 10 Ballistic Cannon 10 | . 11 14 10 Peak Build Rating 22 | 6 9 10 22 Average Rating 11 | 4 7 8 12 On Entrance 6 | . 6 8 10 Avg Prop Armor Cover (%) 12 | 16 . . 12 Naked Turns . | . . . . Heaviest Build 57 | 12 52 52 57 Greatest Support 40 | 20 40 40 40 Greatest Overweight (x) 4 | . 1 1 4 Average Overweight (x) . | . . 1 1 Largest Inventory Capacity 20 | 8 20 20 20 Average Capacity 19 | 6 15 20 20 Most Carried 20 | 7 9 17 20 Average Carried 17 | 3 8 10 19 Final Capacity 20 | 8 20 20 20 Final Carried 17 | 6 9 17 11 Class Distribution -------------------- 100% | Mutant Dominant Class ---------------- Mutant | -10/Materials Mutant | -10/Subcaves Mutant | -8/Scraptown Resources | -11 -10 -10 -8 ----------- Run | Yrd Mat Sub Scr Matter Collected 475 | 270 30 60 115 Remotely . | . . . . Salvage Created 84 | . 20 20 44 Parts 8 | . 2 3 3 Haulers Intercepted . | . . . . Recyclers Shooed . | . . . . Parts Field Recycled . | . . . . Retrieved Matter . | . . . . Parts Self-Destructed 16 | . . 15 1 Prevented . | . . . . Parts Restored . | . . . . Kills | -11 -10 -10 -8 ------- Run | Yrd Mat Sub Scr Combat Hostiles Destroyed 3 | . . 1 2 Guns 1 | . . . 1 Cannons 1 | . . 1 . AOE 1 | . . . 1 Classes Destroyed 4 | . 1 1 2 Operator 1 | . 1 . . Subdweller 1 | . . 1 . Federalist 1 | . . . 1 Ranger 1 | . . . 1 Best Kill Streak 2 | . 1 1 2 Combat Bots Only 2 | . . 1 2 Max Kills in Single Turn 1 | . 1 1 1 Gunslinging . | . . . . Exploded 1 | . . . 1 Melee . | . . . . Uniques/NPCs Destroyed . | . . . . Combat | -11 -10 -10 -8 -------- Run | Yrd Mat Sub Scr Hostile Shots Fired 131 | . . 5 126 Missed 25 | . . 1 24 Hits 106 | . . 4 102 Melee 11 | . . . 11 Projectile 95 | . . 4 91 Critical Strikes 6 | . . . 6 Damage Taken 1880 | . . 85 1795 Core 259 | . . . 259 Absorbed by Shields . | . . . . Regen/Repaired (Parts) 85 | . . . 85 Core Remaining (%) 100 | 100 . . . Volleys Fired 19 | . 2 4 13 Largest 2 | . 2 2 2 Hottest 138 | . 50 50 138 Shots Fired 34 | . 4 8 22 Gun 24 | . 2 4 18 Cannon 6 | . 2 4 . Launcher 4 | . . . 4 Special . | . . . . Kinetic 12 | . 4 8 . Thermal 18 | . . . 18 Explosive 4 | . . . 4 Electromagnetic . | . . . . Robot Hit Streak 5 | . 1 5 4 Robot Miss Streak 3 | . 2 1 3 Penetration Max . | . . . . Secondary Targets . | . . . . Shots Hit Robots 22 | . 1 6 15 Core Hits 18 | . 1 3 14 Critical Kills . | . . . . Critical Parts Destroyed . | . . . . Critical Strikes 1 | . . . 1 Burn 1 | . . . 1 Melee Attacks . | . . . . Impact . | . . . . Slashing . | . . . . Piercing . | . . . . Sneak Attacks . | . . . . Combat Hostiles . | . . . . Follow-up Attacks . | . . . . Damage Inflicted 718 | . 16 85 617 Guns 242 | . 16 17 209 Cannons 68 | . . 68 . Explosions 408 | . . . 408 Melee . | . . . . Ramming . | . . . . Kinetic 101 | . 16 85 . Thermal 209 | . . . 209 Explosive 408 | . . . 408 Electromagnetic . | . . . . Impact . | . . . . Slashing . | . . . . Piercing . | . . . . Highest Corruption 1 | . . . 1 Average Corruption 1 | . . . 1 Corruption Purged . | . . . . Corruption Blocked . | . . . . Effects 1 | . . . 1 Data Loss (minor) 1 | . . . 1 Overload Shots . | . . . . Overflow Damage . | . . . . Projectiles . | . . . . Explosions . | . . . . Melee . | . . . . Knockbacks . | . . . . Impact . | . . . . Kinetic . | . . . . Secondary . | . . . . Self-Inflicted Damage . | . . . . Shots . | . . . . Rammed . | . . . . Targets Rammed . | . . . . Kicked . | . . . . Crushed . | . . . . Highest Temperature 322 | . . . 322 Average Temperature 111 | . . . 111 Received Heat Transfer 797 | . . . 797 Effects 2 | . . . 2 Energy Bleed 1 | . . . 1 Short Circuit 1 | . . . 1 Siege Activations . | . . . . Martial Activations . | . . . . Shielding Activations . | . . . . Robots Disrupted . | . . . . Combat Hostiles . | . . . . Robots Corrupted . | . . . . Combat Hostiles . | . . . . Parts Fried . | . . . . Impact Corruptions . | . . . . Robots Melted . | . . . . Combat Hostiles . | . . . . Parts Melted . | . . . . Heat Transferred 481 | . . . 481 Parts Sabotaged . | . . . . Parts Stolen . | . . . . Parts Stripped . | . . . . Power Chain Reactions . | . . . . Alert | -11 -10 -10 -8 ------- Run | Yrd Mat Sub Scr Maximum Alert Level . | . . . . Low Security (%) 100 | 100 100 . . Level 1 . | . . . . Level 2 . | . . . . Level 3 . | . . . . Level 4 . | . . . . Level 5 . | . . . . High Security . | . . . . Max Security . | . . . . Peak Influence 20 | . 20 . . Initial . | . . . . Average 1 | . 1 . . Influence Increases 20 | . 20 . . Destroy 0b10 Robot/NC 5 | . 5 . . Disable Machine 15 | . 15 . . Influence Decreases 20 | . 20 . . Time Decay 20 | . 20 . . Squads Dispatched . | . . . . Investigation . | . . . . Extermination . | . . . . Reinforcement . | . . . . Assault . | . . . . Garrison . | . . . . Intercept . | . . . . Searches Triggered . | . . . . Construction Impeded . | . . . . Haulers Reinforced . | . . . . Active Scanning Responses . | . . . . Cargo Convoy Interrupts . | . . . . Stealth | -11 -10 -10 -8 --------- Run | Yrd Mat Sub Scr Distress Signals 1 | . 1 . . Communications Jammed . | . . . . Distress Signals . | . . . . Times Spotted 35 | . 4 1 30 Peak Tracking Total 11 | . 2 1 11 Tactical Retreats . | . . . . Traps | -11 -10 -10 -8 ------- Run | Yrd Mat Sub Scr Traps Triggered . | . . . . Indirectly . | . . . . Trap Hack Attempts . | . . . . Triggered . | . . . . Disarmed . | . . . . Reprogrammed . | . . . . Reused . | . . . . Traps Extracted . | . . . . Installed . | . . . . Triggered . | . . . . Machines | -11 -10 -10 -8 ---------- Run | Yrd Mat Sub Scr Machines Disabled 1 | . 1 . . Max in Single Turn 1 | . 1 . . Machines Repaired . | . . . . Machines Dismantled . | . . . . Machines Sabotaged . | . . . . Overloaded Fab Kills . | . . . . Hacking | -11 -10 -10 -8 --------- Run | Yrd Mat Sub Scr Machines Accessed 4 | . 1 . 3 Terminals 1 | . 1 . . Fabricators . | . . . . Repair Stations . | . . . . Recycling Units . | . . . . Scanalyzers . | . . . . Garrison Access . | . . . . Total Hacks 16 | . 2 . 14 Successful 14 | . . . 14 Failed 2 | . 2 . . Catastrophic 1 | . 1 . . Database Lockouts . | . . . . Manual 2 | . 2 . . Terminals 2 | . 2 . . Fabricators . | . . . . Repair Stations . | . . . . Recycling Units . | . . . . Scanalyzers . | . . . . Garrison Access . | . . . . Terminal Hacks 14 | . . . 14 Record 13 | . . . 13 Proto ID Catalog 1 | . . . 1 Fabricator Hacks . | . . . . Repair Station Hacks . | . . . . Recycling Unit Hacks . | . . . . Scanalyzer . | . . . . Garrison Access Hacks . | . . . . Unauthorized Hacks . | . . . . Terminals . | . . . . Fabricators . | . . . . Repair Stations . | . . . . Recycling Units . | . . . . Scanalyzers . | . . . . Garrison Access . | . . . . Data Cores Recovered 1 | . 1 . . Used 1 | . 1 . . Hacking Detections 1 | . 1 . . Full Trace Events . | . . . . Feedback Events . | . . . . Feedback Blocked . | . . . . Robot Schematics Acquired . | . . . . Robots Built . | . . . . Authchips . | . . . . Time . | . . . . Total Robot Build Rating . | . . . . Part Schematics Acquired . | . . . . Parts Built . | . . . . Authchips . | . . . . Time . | . . . . Total Part Build Rating . | . . . . Part Studies Acquired . | . . . . Parts Repaired . | . . . . Time . | . . . . Parts Recycled . | . . . . Recycled Matter . | . . . . Retrieved Matter . | . . . . Retrieved Components . | . . . . Parts Scanalyzed . | . . . . Part Schematics Acquired . | . . . . Parts Damaged . | . . . . Bothacking | -11 -10 -10 -8 ------------ Run | Yrd Mat Sub Scr Used RIF Installer . | . . . . Robots Hacked . | . . . . Non-combat . | . . . . Combat . | . . . . Robot Hacks Applied . | . . . . Relay Couplers Released . | . . . . Fabnet Peak Effective % . | . . . . Robots Rewired . | . . . . Allies Hacked . | . . . . Hacks Repelled . | . . . . Allies | -11 -10 -10 -8 -------- Run | Yrd Mat Sub Scr Total Allies . | . . . . Largest Group . | . . . . Highest-Rated Group . | . . . . Highest-Rated Ally . | . . . . Total Orders . | . . . . Ally Attacks . | . . . . Total Damage . | . . . . Kills . | . . . . Allies Corrupted . | . . . . Allies Melted 2 | . . . 2 Intel | -11 -10 -10 -8 ------- Run | Yrd Mat Sub Scr Active Infowar (turns) . | . . . . Robot Analysis Total . | . . . . Derelict Logs Recovered 2 | . . . 2 Drone Launches . | . . . . Drone Recoveries . | . . . . Exploration | -11 -10 -10 -8 ------------- Run | Yrd Mat Sub Scr Turns Passed 4726 | 76 254 410 3986 Spaces Moved 2000 | 52 133 161 1654 Core 5 | 5 . . . Treads 1832 | 3 62 161 1606 Legs 115 | 44 71 . . Wheels 48 | . . . 48 Hover . | . . . . Flight . | . . . . Fastest Speed 50 | 50 120 240 112 Average Speed 229 | 115 175 240 236 Slowest Speed 240 | 160 240 240 240 Overloaded Moves . | . . . . Propulsion Burnouts . | . . . . Robots Hopped . | . . . . Potential Cave-ins . | . . . . Cave-ins Triggered . | . . . . Exploration Rate (%) 38 | 3 40 18 94 Regions Visited 3 Branch Regions 2 Pre-discovered Areas . | . . . . Known Exits Taken . | . . . . Unknown Exits Taken 3 | 1 1 1 . Scrap Searched 5 | . . 2 3 Spaces Dug . | . . . . Terrain Destroyed 21 | . . . 21 Melee . | . . . . Projectile . | . . . . AOE 21 | . . . 21 Terrain Rammed . | . . . . Walls Destroyed . | . . . . Machines Disabled . | . . . . Actions | -11 -10 -10 -8 --------- Run | Yrd Mat Sub Scr Total 2095 | 65 148 178 1704 Wait 12 | . 1 6 5 Move 1997 | 51 132 160 1654 Hop . | . . . . Pick Up 27 | 6 5 8 8 Fast Attach 9 | 6 1 . 2 Attach 10 | 1 . . 9 Detach 1 | 1 . . . Swap 9 | . 5 . 4 Drop 11 | . 2 . 9 Fire 19 | . 2 4 13 Melee . | . . . . Ram . | . . . . Kick . | . . . . Crush . | . . . . Escape Stasis . | . . . . Rewire . | . . . . Trap . | . . . . Miscellaneous . | . . . . Route ------- -11/Scrapyard -10/Materials (discovered 3 exits: [*Mat] / [*Min] / [*Sub]) -10/Subcaves -8/Scraptown (discovered 2 exits: [*Fac x2]) History --------- Turn | Location | Event 4 | -11/Scrapyard | Discovered new exit (range 16) 77 | -11/Scrapyard | Entered Materials 77 | -10/Materials | Discovered new exit (range 8) 78 | -10/Materials | Met a group of wandering Federalists 158 | -10/Materials | Lost 5 allies 218 | -10/Materials | Discovered new exit (range 13) 273 | -10/Materials | Discovered new exit (range 14) 304 | -10/Materials | Build established: Mutant 331 | -10/Materials | Entered Subcaves 332 | -10/Subcaves | Continued accompanying wandering Federalists (1) 332 | -10/Subcaves | Approached by a straggling Scientist 364 | -10/Subcaves | Shifting Twisted Machinery released Mak. Light Armor Plating 463 | -10/Subcaves | Shifting Twisted Machinery released Battle Rifle 483 | -10/Subcaves | Shifting Twisted Machinery released Shrapnel Trap 741 | -10/Subcaves | Entered Scraptown 1357 | -8/Scraptown | Discovered new exit (range 5) 1439 | -8/Scraptown | Scanned Subdweller tech in exchange for log data 1443 | -8/Scraptown | Learned Factory stockpile data 1446 | -8/Scraptown | Learned location of 1 exit from Lower Caves 1501 | -8/Scraptown | Visited The Evicted 1559 | -8/Scraptown | Visited Artisan Demo Area 1683 | -8/Scraptown | Received an X-ray algorithm 1698 | -8/Scraptown | Visited Red Mages 1806 | -8/Scraptown | Visited CR-KLE's Repair Center 1863 | -8/Scraptown | Visited TADAMA 1931 | -8/Scraptown | CR-KLE repaired 4 parts 2384 | -8/Scraptown | Visited UFD Registry 2384 | -8/Scraptown | Registered with UFD as "Novaboard" 2418 | -8/Scraptown | Visited Shadow of the Wyrm 2478 | -8/Scraptown | Visited Comm Corps 3042 | -8/Scraptown | Visited LU-1G1's Boring Crew 3145 | -8/Scraptown | Visited Science Guys 3253 | -8/Scraptown | Visited A0-MCA Data Center 3268 | -8/Scraptown | Given a B rating by A0-MCA 3475 | -8/Scraptown | Found Scrap Suit 3505 | -8/Scraptown | Discovered new exit (range 5) 3586 | -8/Scraptown | Visited Curators Association 3618 | -8/Scraptown | Visited Supply Room 3692 | -8/Scraptown | Visited Research Penetration Think Tank 3764 | -8/Scraptown | Visited Scrapoid Pod Storage 3850 | -8/Scraptown | Visited Science Testing Area 4261 | -8/Scraptown | Visited Chapter 10 4373 | -8/Scraptown | Met Optimus 4373 | -8/Scraptown | Accepted into 0bPrime 4542 | -8/Scraptown | Civil war broke out across Scraptown 4687 | -8/Scraptown | Lost 11 allies 4703 | -8/Scraptown | Core integrity fell below 50% 4724 | -8/Scraptown | Core integrity fell below 20% 4727 | -8/Scraptown | Destroyed by QZ-6IZ(j) with Overtuned Pulse Rifle Last Messages --------------- 04691_ Slug penetrates 8L-GO5(j). Optimus: This place isn't worth defending, let's get out of here, Novaboard! Our real resources are elsewhere, after all. 04691_ Acquired 30 matter. 04699_ Critical hit (Burn: +50). 04700_ Hvy. Laser destroyed. 04710_ Spk. Treads destroyed. 04716_ PQ-8FL(j) heat short circuits Scrap Suit. 04716_ Hvy. Laser destroyed. 04716_ Lgt. Ion Engine destroyed. 04717_ DK-WO0(j) cannibalizes Aluminum Leg to repair Ovr. Titanium Leg. 04718_ Critical hit (Burn: +50). 04721_ Lgt. Treads destroyed. 04722_ 65-1SL(j) heat damages Scrap Suit. 04723_ Critical hit (Burn: +50). 04723_ Sub. Monowheel destroyed. 04726_ Mak. Light Armor Plating destroyed. 04727_ Lgt. Treads destroyed. Map ----- +----------------------------------------------------+ | #####""""" """""####### #" "###+## "#??## " " | | ????###### ######?????# #" "#"" # "#?##" | | ########## ############ #" "# #" "#?# | | #" # """# "#?# | | #" "##### "### *%! % | | ####################### #" " ## = | | ?????????????????????# # | | #####???????????????### ### % | | """"#????############ [ [% *%! | | "#????#""""""""""# = % [ = !=%! | | ! "#????#""" """# !!! =& /%%= | | =! "#????#"" ==*%== %[[! =%=*! | | ]! "#????#"" # !%=%! =!%! !*=%! | | ! "#????#"" "" " [=[#### *% ##### %!!* /% | | /! "#????#"" " " j [*%### ##########==[% | | [! "#????#"""" #![ j# ## ! %= = | | "#????#""" < % j " """##*= * =% | | " ""#????#"""" " "<#[! """""""## = % ! | | # ###????#"""""""""" """"######## = | | # #???????###########!! # "####??????##!%= % | | " ""#???????????????#%[[ # """###??????# = = | | "#???#############=!= # """###????# =% | | " "#????"""""""" #==%! # " """"#???# | | " "#??####""" """ # # " " ## ! | | "#??#!!+ """ # # """"" ""## !%! | | ""???# !#"" " " # ! @# " ##=%*=! ! | | """"???# #" # %xx# ##!!!% ! | | """"???#!!#" """ # j# !%![!![ | | "??????#!!#" "" # %j## ############ %!!%=%! | | ##?????# !#" """ # !!= # ## ############%[ * = | | ???????####" #[!/%[! * ]%= | | ?X""#??#""" [ =% %=! % == != | | "#??#"""" """" #!%=!! [ *%[ | | "#??#""""""""""""#j[*= *%= !% | | "#??##########;;!;% * ! %! | | "#????????## ![!%jj !!= ![ =% | | "#????????# %[!!%= [%!= [!= !=%! *! | | """########## /[!!=%= =%! *%! !%=!%[ !% | | =!%%&!;#;######!### ###=# # ### | | !!!#=### ## ! # ## | | """##"" """###=[*##??# ## #### | | "##"" "#?#%= #???# ## ??# | | "##"" "#?# #???#"""" """""## #??# | | "##"" "#?# #???#""""" """""## """"" #??# | | ?" "##"%= "#?# #???#""""" """""## """" #??# | | ?? "##" "#?# #???#""""" """""## """" #??# | | ???"##""""""#?# #????"""""""""""?# #??# | | ?????########?# #????"""""""""""?# #??# | | ####??#####???# #????"""""""""""?###########??# | | """"#?#"""#???# #?????#########???????????????# | +----------------------------------------------------+ Best States ------------- Heat Dissipation 39 Energy Generation 10 Energy Capacity 250 Matter Stores 300 Matter Capacity 300 Sight Range 16 Terrain Scan Density 10 Armor Coverage 150 Evasion (%) 55 Recoil Reduction 2 Item Schematics ----------------- None Robot Schematics ------------------ None Fabricated ------------ Nothing Repaired ---------- Nothing Studied --------- None Alien Tech Used ----------------- None Achievements -------------- Plot Armor Challenges ------------ None Game ------ Seed PrecisionTiamatBuckler Manual? 0 Play Time 00:37:49 Cumulative 70.5 hours Start 2026.02.16 @ 22:12:13 End 2026.02.16 @ 22:48:57 Sessions 1 Manual Loads 0 Difficulty Rogue Special Mode None Game No. 52 Rogue 52 Adventurer 0 Explorer 0 Win Type - Total 1 Types 1/0/0/0/0/0/0/0/0/0 Lore% 45 Gallery% 41 Achievement% 30 Wizard Run 0 Options --------- Layout 1 ASCII 1 Keyboard 0 Movement Mouse Keybinds 0 Fullscreen 1 Font 32/SmallcapsGlow Map View 50x35 Zoom Use 0% Tactical HUD 1 Map Filters NONE Filters NONE Steam 1 RUN: 6737bbc9-a02f-4e8d-8904-83773d28bf83